fUSD/lending_fUSD_20260503
["ID","MTS","AMOUNT","RATE_DAILY","PERIOD"]
[421504572,1777775477000,1584.901609,0.00029596,120]
[421504573,1777775484000,2174.560882,0.00029596,120]
[421504574,1777775528000,174.314116,0.00029596,120]
[421504575,1777775660000,759.801499,0.00026852,120]
[421504576,1777775694000,425.575431,0.00026852,120]
[421504577,1777775701000,679.550274,0.00026852,120]
[421504578,1777775798000,455.880899,0.00026852,120]
[421504579,1777775802000,308.1,0.00030137,120]
[421504580,1777775853000,399.506487,0.00026852,120]
[421504581,1777775874000,506.159485,0.00026852,120]
[421504583,1777775879000,335.578996,0.00026852,120]
[421504584,1777775894000,199.753243,0.00026852,120]
[421504585,1777775921000,167.789498,0.00026852,120]
[421504586,1777775940000,265.378178,0.00026852,120]
[421504587,1777775954000,396.015081,0.00026852,120]
[421504588,1777775966000,178.869937,0.00026852,120]
[421504589,1777775998000,198.007541,0.00026852,120]
[421504590,1777776043000,243.885934,0.00026852,120]
[421504591,1777776054000,177.287016,0.00026852,120]
[421504592,1777776133000,196.839799,0.00026852,120]
[421504594,1777776631000,-764.99473768,0.00012376,2]
[421504595,1777776631000,-273.49526232,0.00012376,2]
[421504598,1777776631000,-566.67398638,0.00012599,2]
[421504597,1777776631000,-12.13526232,0.00012599,2]
[421504596,1777776631000,-287.86473768,0.00012599,2]
[421504616,1777776638000,-175.11078155,0.00012599,2]
[421504615,1777776638000,-458.21523207,0.00012599,2]
[421504619,1777776638000,-136.7405251,0.000126,2]
[421504617,1777776638000,-150.0,0.000126,2]
[421504618,1777776638000,-150.0,0.000126,2]
[421504620,1777776638000,-13.2594749,0.000126,2]
[421504621,1777776638000,-150.38442703,0.000126,2]
[421504623,1777776638000,-150.0,0.000126,2]
[421504625,1777776638000,-64.48123733,0.000126,2]
[421504622,1777776638000,-150.0,0.000126,2]
[421504629,1777776638000,-150.28000571,0.000126,2]
[421504626,1777776638000,-85.51876267,0.000126,2]
[421504628,1777776638000,-150.0,0.000126,2]
[421504627,1777776638000,-150.0,0.000126,2]
[421504630,1777776638000,-150.0,0.000126,2]
[421504631,1777776638000,-150.0,0.0001263,2]
[421504632,1777776638000,-120.9919505,0.00012661,2]
[421504624,1777776638000,-150.0,0.000126,2]
[421504652,1777776640000,-150.0,0.00012911,2]
[421504653,1777776640000,-150.0,0.00012935,2]
[421504654,1777776640000,-150.0,0.00012965,2]
[421504655,1777776640000,-150.0,0.00012996,2]
[421504661,1777776640000,-150.0,0.00013026,2]
[421504659,1777776640000,-150.0,0.0001302,2]
[421504662,1777776640000,-150.0,0.00013057,2]
[421504658,1777776640000,-250.0,0.00013,2]
[421504651,1777776640000,-150.0,0.00012904,2]
[421504660,1777776640000,-150.0,0.00013026,2]
[421504664,1777776640000,-150.0,0.00013067,2]
[421504663,1777776640000,-150.0,0.00013067,2]
[421504656,1777776640000,-150.0,0.00013,2]
[421504649,1777776640000,-150.0,0.0001288,2]
[421504646,1777776640000,-150.0,0.00012874,2]
[421504650,1777776640000,-150.0,0.000129,2]
[421504644,1777776640000,-150.0,0.00012813,2]
[421504648,1777776640000,-150.0,0.0001288,2]
[421504645,1777776640000,-150.0,0.00012843,2]
[421504647,1777776640000,-150.0,0.0001288,2]
[421504643,1777776640000,-150.0,0.000128,2]
[421504667,1777776640000,-150.0,0.000131,2]
[421504638,1777776640000,-150.0,0.00012722,2]
[421504639,1777776640000,-150.0,0.0001274,2]
[421504640,1777776640000,-150.0,0.00012752,2]
[421504642,1777776640000,-150.0,0.00012783,2]
[421504641,1777776640000,-150.0,0.00012756,2]
[421504637,1777776640000,-150.0,0.000127,2]
[421504635,1777776640000,-29.0080495,0.00012661,2]
[421504636,1777776640000,-150.0,0.00012691,2]
[421504665,1777776640000,-150.0,0.00013067,2]
[421504684,1777776640000,-150.0,0.0001333,2]
[421504666,1777776640000,-150.0,0.00013087,2]
[421504668,1777776640000,-150.0,0.00013117,2]
[421504697,1777776640000,-150.0,0.00013513,2]
[421504698,1777776640000,-150.0,0.00013533,2]
[421504696,1777776640000,-150.0,0.000135,2]
[421504695,1777776640000,-150.0,0.00013483,2]
[421504693,1777776640000,-150.0,0.0001344,2]
[421504694,1777776640000,-150.0,0.00013452,2]
[421504692,1777776640000,-150.0,0.0001344,2]
[421504691,1777776640000,-150.0,0.0001344,2]
[421504688,1777776640000,-150.0,0.00013391,2]
[421504689,1777776640000,-150.0,0.000134,2]
[421504686,1777776640000,-150.0,0.00013361,2]
[421504687,1777776640000,-150.0,0.00013378,2]
[421504685,1777776640000,-316.82,0.00013343,2]
[421504690,1777776640000,-150.0,0.00013422,2]
[421504682,1777776640000,-150.0,0.000133,2]
[421504669,1777776640000,-150.0,0.00013148,2]
[421504683,1777776640000,-150.0,0.000133,2]
[421504670,1777776640000,-150.0,0.0001316,2]
[421504674,1777776640000,-161.33,0.000132,2]
[421504673,1777776640000,-150.0,0.00013178,2]
[421504675,1777776640000,-150.0,0.000132,2]
[421504672,1777776640000,-150.0,0.0001316,2]
[421504677,1777776640000,-150.0,0.00013222,2]
[421504676,1777776640000,-150.0,0.00013209,2]
[421504678,1777776640000,-150.0,0.00013239,2]
[421504680,1777776640000,-150.0,0.000133,2]
[421504681,1777776640000,-150.0,0.000133,2]
[421504679,1777776640000,-150.0,0.0001327,2]
[421504671,1777776640000,-150.0,0.0001316,2]
[421504707,1777776641000,-2301.098,0.00013622,2]
[421504709,1777776641000,-265.378178,0.00013622,2]
[421504711,1777776641000,-150.0,0.00013665,2]
[421504708,1777776641000,-185.191,0.00013622,2]
[421504705,1777776641000,-150.0,0.00013604,2]
[421504699,1777776641000,-150.0,0.00013533,2]
[421504700,1777776641000,-150.0,0.00013533,2]
[421504702,1777776641000,-150.0,0.00013574,2]
[421504704,1777776641000,-150.0,0.000136,2]
[421504703,1777776641000,-150.0,0.0001358,2]
[421504701,1777776641000,-150.0,0.00013543,2]
[421504710,1777776641000,-150.0,0.00013635,2]
[421504706,1777776641000,-252.65131702,0.00013613,2]
[421504713,1777776641000,-150.0,0.00013689,2]
[421504721,1777776641000,-500.0,0.00013699,2]
[421504714,1777776641000,-150.0,0.00013696,2]
[421504725,1777776641000,-595.02413532,0.00013699,2]
[421504727,1777776641000,-77797.88424648,0.000137,2]
[421504728,1777776641000,-252.48526404,0.000137,2]
[421504726,1777776641000,-150.0,0.000137,2]
[421504724,1777776641000,-500.0,0.00013699,2]
[421504712,1777776641000,-316.82,0.00013677,2]
[421504723,1777776641000,-407.51393314,0.00013699,2]
[421504717,1777776641000,-540.59807181,0.00013699,2]
[421504719,1777776641000,-521.8592723,0.00013699,2]
[421504720,1777776641000,-500.57400157,0.00013699,2]
[421504718,1777776641000,-500.0,0.00013699,2]
[421504716,1777776641000,-195.4909384,0.00013699,2]
[421504715,1777776641000,-6723.53,0.00013699,2]
[421504722,1777776641000,-339.83360568,0.00013699,2]
[421504730,1777776645000,-178.869937,0.00013622,2]
[421504731,1777776645000,-503.34044827,0.00013699,2]
[421504732,1777776646000,-913.03961473,0.000137,2]
[421504733,1777776646000,-562.83127716,0.000137,2]
[421504734,1777776646000,-38884.84685824,0.000137,2]
[421504786,1777776647000,-1054.0,0.000137,2]
[421504785,1777776647000,-21833.61682768,0.000137,2]
[421504755,1777776647000,-289.26739204,0.000137,2]
[421504752,1777776647000,-18004.34212733,0.000137,2]
[421504748,1777776647000,-42.79542364,0.000137,2]
[421504874,1777776693000,331.786549,0.00022012,120]
[421504875,1777776694000,2383.541696,0.00022012,120]
[421504876,1777776725000,165.893274,0.00022012,120]
[421504877,1777777181000,360.0,0.00030137,120]
[421504878,1777777236000,358.81481599,0.00030137,120]
[421504880,1777777331000,200.0,0.00030137,120]
[421504881,1777777346000,500.0,0.00030137,120]
[421504882,1777777360000,449.0,0.00030137,120]
[421504886,1777777632000,1199.925411,0.00024598,120]
[421504887,1777777716000,178.724147,0.00025088,120]
[421504888,1777777756000,-1205.89620834,0.00012371,2]
[421504889,1777777812000,255.0,0.00030136,120]
[421504891,1777777831000,-728.743811,0.00012371,2]
[421504890,1777777831000,-362.36399931,0.00012371,2]
[421504904,1777777832000,-300.0,0.00013589,2]
[421504921,1777777832000,-202.02219804,0.00013692,2]
[421504917,1777777832000,-2500.0,0.000136,2]
[421504915,1777777832000,-6538.07836861,0.000136,2]
[421504913,1777777832000,-1442.7993516,0.000136,2]
[421504911,1777777832000,-2000.0,0.000136,2]
[421504909,1777777832000,-150.0,0.00013599,2]
[421504908,1777777832000,-200.0,0.0001359,2]
[421504910,1777777832000,-107874.2495,0.000136,2]
[421504907,1777777832000,-4619.12555439,0.0001359,2]
[421504906,1777777832000,-1426.95141075,0.0001359,2]
[421504905,1777777832000,-300.0,0.00013589,2]
[421504894,1777777832000,-46.94814537,0.00012885,2]
[421504901,1777777832000,-190.09,0.00013529,2]
[421504902,1777777832000,-250.35484092,0.00013585,2]
[421504900,1777777832000,-167.95,0.00013255,2]
[421504899,1777777832000,-190.09,0.00013207,2]
[421504898,1777777832000,-448.73997826,0.0001314,2]
[421504897,1777777832000,-112.62002174,0.0001314,2]
[421504895,1777777832000,-444.80185463,0.00012935,2]
[421504896,1777777832000,-385.98814537,0.00012935,2]
[421504918,1777777832000,-500.0,0.00013673,2]
[421504892,1777777832000,-1557.09598135,0.00012371,2]
[421504893,1777777832000,-143.14185463,0.00012885,2]
[421504903,1777777832000,-1200.0,0.00013589,2]
[421504920,1777777832000,-1845.9802733,0.0001369,2]
[421504950,1777777832000,-2000.0,0.00014269,2]
[421504923,1777777832000,-174.61919141,0.00013692,2]
[421504955,1777777832000,-1331.04930722,0.00014269,2]
[421504952,1777777832000,-2000.0,0.00014269,2]
[421504919,1777777832000,-32434.4735879,0.0001369,2]
[421504953,1777777832000,-2000.0,0.00014269,2]
[421504951,1777777832000,-2000.0,0.00014269,2]
[421504949,1777777832000,-1840.878,0.00014267,2]
[421504948,1777777832000,-1002.25088546,0.00014221,2]
[421504946,1777777832000,-152.47464645,0.00014,2]
[421504947,1777777832000,-190.09,0.00014173,2]
[421504945,1777777832000,-150.264185,0.00013991,2]
[421504944,1777777832000,-3020.8259597,0.00013991,2]
[421504943,1777777832000,-330.77350426,0.00013899,2]
[421504954,1777777832000,-2000.0,0.00014269,2]
[421504939,1777777832000,-500.0,0.00013899,2]
[421504940,1777777832000,-521.45543839,0.00013899,2]
[421504941,1777777832000,-500.0,0.00013899,2]
[421504937,1777777832000,-500.0,0.00013899,2]
[421504935,1777777832000,-151.0,0.00013897,2]
[421504938,1777777832000,-501.73372211,0.00013899,2]
[421504933,1777777832000,-190.09,0.00013851,2]
[421504931,1777777832000,-151.0,0.00013797,2]
[421504927,1777777832000,-196.7685696,0.000137,2]
[421504925,1777777832000,-151.0,0.00013697,2]
[421504929,1777777832000,-150.0,0.0001372,2]
[421504942,1777777832000,-500.0,0.00013899,2]
[421504970,1777777838000,-152.27632918,0.00014477,2]
[421504973,1777777838000,-242.0,0.00014714,2]
[421504972,1777777838000,-675.88309976,0.00014686,2]
[421504975,1777777838000,-152.0,0.00014787,7]
[421504976,1777777838000,-192.11824123,0.000149,2]
[421504974,1777777838000,-152.0,0.00014787,7]
[421504959,1777777838000,-398.93172419,0.00013689,2]
[421504967,1777777838000,-185.19109655,0.00014368,2]
[421504965,1777777838000,-216.31558332,0.00013699,2]
[421504968,1777777838000,-1372.0,0.00014379,5]
[421504969,1777777838000,-1106.0,0.00014379,5]
[421504966,1777777838000,-668.95069278,0.00014269,2]
[421504963,1777777838000,-500.0,0.00013699,2]
[421504961,1777777838000,-500.0,0.00013689,2]
[421504962,1777777838000,-638.03475048,0.00013689,2]
[421504960,1777777838000,-101.06827581,0.00013689,2]
[421504971,1777777838000,-830.79,0.00014552,2]
[421504964,1777777838000,-500.0,0.00013699,2]
[421504977,1777777838000,-1893.26864254,0.000149,2]
[421504986,1777777838000,-501.65164627,0.00014973,2]
[421504979,1777777838000,-987.38491589,0.000149,2]
[421504978,1777777838000,-2119.34644157,0.000149,2]
[421504997,1777777838000,-250.0,0.00015,2]
[421504996,1777777838000,-638.08034206,0.00015,5]
[421504998,1777777838000,-443.42697033,0.00015,2]
[421504995,1777777838000,-336.22096291,0.00015,5]
[421504992,1777777838000,-583.34195519,0.00014999,2]
[421504993,1777777838000,-500.0,0.00014999,2]
[421504991,1777777838000,-566.0404294,0.00014999,2]
[421504989,1777777838000,-237.27295251,0.00014999,2]
[421504994,1777777838000,-383.69869503,0.00015,5]
[421504988,1777777838000,-151.0,0.00014997,2]
[421504982,1777777838000,-150.1707668,0.00014973,2]
[421504981,1777777838000,-500.95355962,0.00014973,2]
[421504980,1777777838000,-1499.0,0.00014948,2]
[421504990,1777777838000,-184.03953756,0.00014999,2]
[421504983,1777777838000,-266.03361371,0.00014973,2]
[421504985,1777777838000,-500.394342,0.00014973,2]
[421504987,1777777838000,-500.0,0.00014973,2]
[421504984,1777777838000,-501.48301784,0.00014973,2]
[421505036,1777777840000,-1596.28143934,0.00015,2]
[421505035,1777777840000,-20232.96582522,0.00015,2]
[421505038,1777777840000,-36406.87686696,0.00015,2]
[421505039,1777777840000,-2027.67609915,0.00015,2]
[421505040,1777777840000,-1136.0,0.00015,2]
[421505037,1777777840000,-1633.54744818,0.00015,2]
[421505047,1777777843000,-23004.38239336,0.00015,2]
[421505048,1777777843000,-670881.48508012,0.00015,2]
[421505046,1777777843000,-1119.91477009,0.00015,2]
[421505052,1777777846000,-509.0,0.00015,2]
[421505051,1777777846000,-5908.69393791,0.00015,2]
[421505053,1777777923000,449.972029,0.00026852,120]
[421505054,1777778005000,243.374453,0.00026852,120]
[421505055,1777778171000,168.73951,0.0002744,120]
[421505056,1777778204000,151.0,0.00030137,120]
[421505057,1777778306000,207.396184,0.00026966,120]
[421505064,1777778951000,186.81,6.855e-05,2]
[421505065,1777778955000,-203.97,0.000109,2]
[421505066,1777778956000,381.09416414,0.00010682,2]
[421505067,1777778971000,1469.76449812,0.00012,2]
[421505101,1777779032000,-150.0,0.00014471,2]
[421505090,1777779032000,-150.0,0.00013885,2]
[421505092,1777779032000,-150.0,0.0001393,2]
[421505093,1777779032000,-150.0,0.00014064,2]
[421505094,1777779032000,-150.0,0.00014065,2]
[421505089,1777779032000,-150.0,0.00013795,2]
[421505109,1777779032000,-500.0,0.00014799,2]
[421505091,1777779032000,-150.0,0.00013885,2]
[421505096,1777779032000,-150.0,0.00014133,2]
[421505098,1777779032000,-150.0,0.00014336,2]
[421505084,1777779032000,-150.0,0.00013389,2]
[421505099,1777779032000,-150.0,0.00014381,2]
[421505095,1777779032000,-150.0,0.00014133,2]
[421505097,1777779032000,-150.0,0.000142,2]
[421505100,1777779032000,-150.0,0.00014381,2]
[421505087,1777779032000,-1078.4829912,0.000136,2]
[421505072,1777779032000,-278419.74729506,0.00012,2]
[421505080,1777779032000,-150.0,0.00013389,2]
[421505070,1777779032000,-1663.6855344,0.00012,2]
[421505069,1777779032000,-315.42809693,0.00012,2]
[421505074,1777779032000,-3302.27339619,0.000132,2]
[421505071,1777779032000,-27628.40977604,0.00012,2]
[421505076,1777779032000,-150.0,0.00013389,2]
[421505106,1777779032000,-500.0,0.00014799,2]
[421505075,1777779032000,-250.0,0.000132,2]
[421505086,1777779032000,-150.0,0.00013524,2]
[421505073,1777779032000,-250.0,0.00013,2]
[421505082,1777779032000,-150.60472304,0.00013389,2]
[421505085,1777779032000,-150.0,0.00013389,2]
[421505078,1777779032000,-150.0,0.00013389,2]
[421505081,1777779032000,-150.0,0.00013389,2]
[421505079,1777779032000,-153.31571729,0.00013389,2]
[421505088,1777779032000,-150.0,0.0001366,2]
[421505083,1777779032000,-288.30583235,0.00013389,2]
[421505077,1777779032000,-151.31290263,0.00013389,2]
[421505102,1777779032000,-150.0,0.00014606,2]
[421505114,1777779032000,-154.86244613,0.000148,2]
[421505113,1777779032000,-192.11824121,0.000148,2]
[421505128,1777779032000,-232.26543517,0.00014877,2]
[421505130,1777779032000,-297.26327474,0.00014877,2]
[421505131,1777779032000,-243.12029702,0.00014877,2]
[421505133,1777779032000,-205.97862845,0.0001489,2]
[421505129,1777779032000,-159.82053105,0.00014877,2]
[421505110,1777779032000,-164.25941363,0.00014799,2]
[421505119,1777779032000,-5000.0,0.000148,2]
[421505132,1777779032000,-200.0,0.0001488,2]
[421505139,1777779032000,-1472.702,0.00014899,2]
[421505136,1777779032000,-300.0,0.00014899,2]
[421505138,1777779032000,-300.0,0.00014899,2]
[421505137,1777779032000,-300.0,0.00014899,2]
[421505141,1777779032000,-250.0,0.000149,2]
[421505140,1777779032000,-873.0,0.000149,5]
[421505135,1777779032000,-211.26772661,0.00014891,2]
[421505122,1777779032000,-1637.76133,0.0001485,2]
[421505134,1777779032000,-151.0,0.00014891,2]
[421505121,1777779032000,-3322.5,0.00014803,2]
[421505124,1777779032000,-1637.76134,0.0001486,2]
[421505105,1777779032000,-150.0,0.00014741,2]
[421505107,1777779032000,-309.5614891,0.00014799,2]
[421505104,1777779032000,-355.0,0.000147,2]
[421505108,1777779032000,-500.0,0.00014799,2]
[421505111,1777779032000,-203.04843475,0.00014799,2]
[421505103,1777779032000,-1826.41775292,0.000147,2]
[421505112,1777779032000,-284.11146089,0.00014799,2]
[421505127,1777779032000,-172.8634174,0.00014877,2]
[421505116,1777779032000,-173.19996004,0.000148,2]
[421505118,1777779032000,-2500.0,0.000148,2]
[421505120,1777779032000,-222.44596096,0.000148,2]
[421505125,1777779032000,-500.0,0.00014873,2]
[421505123,1777779032000,-1637.76134,0.0001485,2]
[421505126,1777779032000,-159.09718591,0.00014877,2]
[421505117,1777779032000,-5884.27053174,0.000148,2]
[421505115,1777779032000,-98914.211,0.000148,2]
[421505148,1777779033000,-4862.1824804,0.000149,2]
[421505142,1777779033000,-249429.56944795,0.000149,2]
[421505144,1777779033000,-5494.790128,0.000149,2]
[421505155,1777779038000,-951.09613886,0.000147,2]
[421505154,1777779038000,-182.00386116,0.00011999,2]
[421505158,1777779038000,-1898.96099122,0.000149,2]
[421505157,1777779038000,-2031.7587187,0.000149,2]
[421505159,1777779038000,-364.29069395,0.000149,2]
[421505162,1777779038000,-937.5,0.000149,2]
[421505160,1777779038000,-12148.56389658,0.000149,2]
[421505161,1777779038000,-22921.64023375,0.000149,2]
[421505163,1777779038000,-465.55537377,0.000149,2]
[421505156,1777779038000,-266.51569642,0.000147,2]
[421505203,1777779041000,-900.57978899,0.000147,2]
[421505205,1777779041000,-394.07604548,0.000149,2]
[421505204,1777779041000,-55967.5770815,0.000149,2]
[421505223,1777779046000,-7116.10129131,0.000149,2]
[421505222,1777779046000,-329209.4568,0.000149,2]
[421505227,1777779705000,476.19,0.00029452,120]
[421505228,1777779940000,248.0,0.00030137,120]
[421505252,1777780232000,-156.90426805,0.00013996,2]
[421505250,1777780232000,-1054.69,0.00013769,2]
[421505249,1777780232000,-200.0,0.00013763,2]
[421505247,1777780232000,-300.0,0.0001374,2]
[421505248,1777780232000,-302.73457893,0.0001374,2]
[421505246,1777780232000,-169.26,0.00013699,2]
[421505244,1777780232000,-1000.0,0.00013686,2]
[421505245,1777780232000,-615.65,0.00013686,2]
[421505243,1777780232000,-1000.0,0.00013686,2]
[421505242,1777780232000,-1000.0,0.00013686,2]
[421505241,1777780232000,-1000.0,0.00013686,2]
[421505240,1777780232000,-847.28918708,0.00013686,2]
[421505239,1777780232000,-152.71081292,0.00013686,2]
[421505238,1777780232000,-216.05758609,0.00013686,2]
[421505237,1777780232000,-662.71,0.00013682,2]
[421505236,1777780232000,-250.0,0.00013,2]
[421505253,1777780232000,-174.61919141,0.00013996,2]
[421505255,1777780232000,-300.0,0.00013999,2]
[421505251,1777780232000,-158.42,0.00013786,2]
[421505254,1777780232000,-300.0,0.00013999,2]
[421505274,1777780232000,-1578.3855217,0.00014561,2]
[421505273,1777780232000,-1534.0,0.00014561,2]
[421505270,1777780232000,-156.492,0.00014475,2]
[421505272,1777780232000,-1534.0,0.00014561,2]
[421505269,1777780232000,-158.42,0.00014475,2]
[421505271,1777780232000,-150.0,0.0001456,2]
[421505256,1777780232000,-1200.0,0.00013999,2]
[421505267,1777780232000,-224.74966561,0.00014472,2]
[421505264,1777780232000,-150.0,0.00014472,2]
[421505268,1777780232000,-1902.013,0.00014475,2]
[421505265,1777780232000,-150.0,0.00014472,2]
[421505263,1777780232000,-150.0,0.00014472,2]
[421505262,1777780232000,-158.42,0.0001413,2]
[421505261,1777780232000,-1387.2598778,0.00014004,2]
[421505260,1777780232000,-4652.4622784,0.00014004,2]
[421505259,1777780232000,-193.6880214,0.00014004,2]
[421505258,1777780232000,-1200.0,0.00014,2]
[421505257,1777780232000,-300.0,0.00014,2]
[421505266,1777780232000,-150.0,0.00014472,2]
[421505281,1777780233000,-1001.85202506,0.00014699,2]
[421505275,1777780233000,-155.92370673,0.00014561,2]
[421505276,1777780233000,-151.0,0.00014561,2]
[421505277,1777780233000,-151.86157698,0.00014561,2]
[421505278,1777780233000,-1412.50387832,0.0001469,2]
[421505279,1777780233000,-1377.42282659,0.00014691,2]
[421505280,1777780233000,-151.60855931,0.00014691,2]
[421505291,1777780233000,-575.75,0.000147,2]
[421505282,1777780233000,-1167.81817357,0.000147,2]
[421505284,1777780233000,-128.68202886,0.000147,2]
[421505285,1777780233000,-963.43440042,0.000147,2]
[421505287,1777780233000,-259.79291513,0.000147,2]
[421505288,1777780233000,-735.95364504,0.000147,2]
[421505289,1777780233000,-1085.39999998,0.000147,2]
[421505290,1777780233000,-829.98709775,0.000147,2]
[421505283,1777780233000,-4871.31797114,0.000147,2]
[421505296,1777780237000,-1163.91334365,0.000147,2]
[421505297,1777780238000,-177.287016,0.000147,2]
[421505299,1777780238000,-207.396185,0.000147,7]
[421505300,1777780238000,-2500.0,0.000147,2]
[421505298,1777780238000,-268.886436,0.000147,7]
[421505301,1777780238000,-6771.38137877,0.000147,2]
[421505302,1777780238000,-217.94669982,0.000147,2]
[421505303,1777780238000,-1000.0,0.000147,2]
[421505306,1777780238000,-550.32129729,0.000147,2]
[421505308,1777780238000,-157.41897031,0.00014724,2]
[421505305,1777780238000,-1097.19038784,0.000147,15]
[421505307,1777780238000,-778.54544904,0.000147,2]
[421505304,1777780238000,-1000.0,0.000147,2]
[421505575,1777780240000,-561.22993896,0.000147,2]
[421505572,1777780240000,-286.88014358,0.000147,2]
[421505570,1777780240000,-165.893275,0.000147,7]
[421505902,1777780242000,-379.0,0.00014748,2]
[421505896,1777780242000,-379.0,0.00014732,2]
[421505898,1777780242000,-388.0,0.0001474,2]
[421505891,1777780242000,-168.73951,0.000147,7]
[421505869,1777780242000,-1179.01478047,0.000147,2]
[421505894,1777780242000,-400.0,0.00014727,2]
[421505889,1777780242000,-519.03029936,0.000147,2]
[421505892,1777780242000,-261.58102969,0.00014724,2]
[421505900,1777780242000,-388.0,0.00014746,2]
[421505887,1777780242000,-1730.51143613,0.000147,2]
[421505905,1777780242000,-400.0,0.00014752,2]
[421505941,1777780242000,-419.0,0.00014796,2]
[421505908,1777780242000,-388.0,0.00014775,2]
[421505906,1777780242000,-419.0,0.0001477,2]
[421505946,1777780242000,-379.0,0.00014798,2]
[421505940,1777780242000,-307.08587683,0.00014795,2]
[421505937,1777780242000,-80.91412317,0.00014795,2]
[421505943,1777780242000,-400.0,0.00014797,2]
[421505934,1777780242000,-193.6414604,0.00014784,2]
[421505928,1777780242000,-66.54980239,0.00014784,2]
[421505912,1777780242000,-139.80873721,0.00014784,2]
[421505910,1777780242000,-388.0,0.00014782,2]
[421505936,1777780242000,-432.92941179,0.00014792,2]
[421505995,1777780243000,-500.0,0.00014799,2]
[421506023,1777780243000,-166.00227812,0.00014799,2]
[421506007,1777780243000,-500.0,0.00014799,2]
[421506009,1777780243000,-500.0,0.00014799,2]
[421506013,1777780243000,-500.0,0.00014799,2]
[421506015,1777780243000,-500.0,0.00014799,2]
[421506011,1777780243000,-500.0,0.00014799,2]
[421506021,1777780243000,-500.0,0.00014799,2]
[421506019,1777780243000,-150.0,0.00014799,2]
[421506017,1777780243000,-500.0,0.00014799,2]
[421506025,1777780243000,-275.8887716,0.00014799,2]
[421506043,1777780243000,-179.34661199,0.000148,2]
[421506031,1777780243000,-250.0,0.00014799,2]
[421506050,1777780243000,-158.42,0.0001482,2]
[421506052,1777780243000,-400.0,0.00014825,2]
[421505999,1777780243000,-500.0,0.00014799,2]
[421506037,1777780243000,-332817.7657,0.000148,2]
[421506039,1777780243000,-470190.4533,0.000148,2]
[421506047,1777780243000,-379.0,0.00014801,2]
[421506041,1777780243000,-179.0,0.000148,2]
[421506045,1777780243000,-885.0,0.000148,2]
[421506057,1777780243000,-400.0,0.00014837,2]
[421506060,1777780243000,-154.10916,0.0001485,2]
[421506053,1777780243000,-419.0,0.00014829,2]
[421506035,1777780243000,-302.0,0.000148,2]
[421505997,1777780243000,-500.0,0.00014799,2]
[421505987,1777780243000,-500.0,0.00014799,2]
[421506001,1777780243000,-500.0,0.00014799,2]
[421506055,1777780243000,-388.0,0.00014829,2]
[421505951,1777780243000,-500.0,0.00014799,2]
[421505949,1777780243000,-156.213,0.00014799,2]
[421505947,1777780243000,-5532.68258678,0.00014799,2]
[421505953,1777780243000,-155.52297695,0.00014799,2]
[421505955,1777780243000,-500.0,0.00014799,2]
[421505957,1777780243000,-500.0,0.00014799,2]
[421505959,1777780243000,-500.0,0.00014799,2]
[421505961,1777780243000,-500.0,0.00014799,2]
[421505963,1777780243000,-500.0,0.00014799,2]
[421505965,1777780243000,-500.0,0.00014799,2]
[421505967,1777780243000,-258.49744147,0.00014799,2]